{"text_format":"1","workbook":"xlsx","n_sheets":1,"sheets":[" blank price bid "],"not_rendered":{"charts":0,"images":1,"macros":1,"external_links":0,"defined_names":1,"comments":0,"pivot_tables":0},"unopened":[],"bounds":{"document_bytes":16777216,"sheet_cells":100000,"rows_first":2000,"rows_last":500,"rows_between":2000,"halvings":0,"cell_chars":16384,"cell_head_chars":4096},"cells_cut":0,"cells_raw":0,"read":"whole","date_system":"1900"}

{"sheet":" blank price bid ","index":0,"n_rows":21,"n_cols":9,"rows_kept":21,"cut":false,"hidden":false,"merged":[[20,1,20,8],[5,1,5,3],[5,9,5,10],[5,7,5,8],[0,0,0,9],[1,0,1,9],[2,0,2,9],[17,1,17,7],[18,1,18,8],[19,1,19,8],[3,0,3,8]]}
["BHARAT HEAVY ELECTRICALS LIMITED , JHANSI              "]
["FACTORY CIVIL DEPARTMENT "]
["BLANK PRICE BID "]
["Name of work :- \"Epoxy flooring maintenance  work inside factory area."]
[]
[null,"Tender Enq No-FCX/TW/20/09",null,null,null,null,null,"Date- "]
[]
["Sl. No.","Description of Work","% Allocation (Item-wise)","Unit ","Quantity ","Rate ","Amount\nRs","Rate ","Amount (in Rs.)"]
[" (A)","( B)","( C)","(D)","(E)",null,null,"(F)","(G=E*F)"]
[1,"Dry Area Surface preparation : Removal of existing old coatings/paintings from concrete floor by using scarifying machines, sanders, scrubbing machines, wire brushes and other mechanical tools.Oil contaminated areas/oil soaked areas must be degreased with the help of universal degreaser or flame burning by mechanical, chemical or any other suitable means. Make entire area dust free and dry with the help of high capacity vacuum cleaner and hot air blowers. Then it should be washed thoroughly by solvent cleaning/detergent washing acid cleaning. This process must be repeated upto satisfaction of Engineer-in- charge to ensure permissible limit of moisture & oil content. (The area uder execution shall be baricaded and covered to protect outer area from dust).\n",{"$f":"G10/495297.66","v":8.7099139535607752E-3},"Sqm",600,7.19,{"$f":"E10*F10","v":4314},{"$f":"I10/E10","v":0},{"$f":"C10*$I$16","v":0}]
[2,"Oil soaked area Surface preparation : Removal of existing old coatings/paintings from concrete floor by using scarifying machines, sanders, scrubbing machines, wire brushes and other mechanical tools.Oil contaminated areas/oil soaked areas must be degreased with the help of universal degreaser or flame burning by mechanical, chemical or any other suitable means. Make entire area dust free and dry with the help of high capacity vacuum cleaner and hot air blowers. Then it should be washed thoroughly by solvent cleaning/detergent washing acid cleaning. This process must be repeated upto satisfaction of Engineer-in- charge to ensure permissible limit of moisture & oil content. (The area uder execution shall be baricaded and covered to protect outer area from dust)\n",{"$f":"G11/495297.66","v":1.1407281835331103E-3},"Sqm",50,11.3,{"$f":"E11*F11","v":565},{"$f":"I11/E11","v":0},{"$f":"C11*$I$16","v":0}]
[3,"Repairing of cracks, erosion, crumbled joints, small size damages, pot holes, etc., in the concrete floor with fast setting epoxy resin based putty / mortar including cutting in regular shape etc. complete. Undulations ,if any, found in the existing floor has to be removed followed by filling with epoxy screed to the required thickness to bring the level within tolerance limits.\n",6.2248577956132485E-2,"Cum",0.5,61663.15,30831.575000000001,0,0]
[4,"Expansion joint edge must be checked and if required to be repaired up to correct width, clean all sorts of loose particles dust, oil, grease etc by means of vacuum cleaner, air blower and other mechanical tools. Then insert expanded polystyrene based backer rod (High density) of appropriate dimension i.e. around 30mm dia. for 25mm wide joint in the prepared expansion joint. Provide bond breaking tape on both sides of the joints and over the backer rod in the entire length of the joint. Apply compatible primer on both sides of expansion joint. Apply polysulphide based sealant in the joint after properly mixing the same with the help of mechanical stirrer and apply by means of polysulphide gun. After finishing the top surface, remove the tape all as per specification and direction. Expansion joint filling size 25mm width and 12.5 mm depth.\n",2.2707728924057504E-2,"metre",51.5,218.39,11247.084999999999,0,0]
[5,"Providing and applying high strength , high abrasion resistant epoxy resin based mortar/screed of minimum thickness 2 mm (having compressive strength not less than 50 N/sqmm at 7 days and flexural strength not less than 20 N/sqmm at 7 days) to give proper level to the surface followed by application of seal coat (one or more coats) of approved quality having compatibility with the under surface of screed and 1000 micron (average) thick Self Levelling epoxy floor topping of approved colour (compressive strength not less than 50 N/mm² at 7 days and flexural strength not less than 20 N/mm² at 7 days) in that order. High strength, high abrasion resistant epoxy screed shall be applied after application of one or more coats of compatible and appropriate epoxy primer. All work to be done as per manufacturer's specifications and instructions of Engineer-in-charge. All materials to be got approved before start of work. Total minimum thickness of the multi-layered system shall be 3.0 mm.Weight loss against abrasion resistance as per ASTM D4060 for product of self levelling top coat shall not be more than 75 mg when tested with CS17 wheel.\n",0.14265159257970247,"Sqm",125,565.24,70655,0,0]
[6,"Providing and laying 5mm thick high density/highly abrasion resistant epoxy resin floor based screed flooring (compressive strength not less than 50N/sqmm at 7 days flexural strength not less than 25N/sqmm at 7 days inclusive of average 1.5mm thick topping of self levelling epoxy flooring of approved colour (compressive strength not less than 50N/sqmm at 7 days and flexural strength not less than 20N/sqmm at 7 days) after application of one or more coats of compatible and appropriate epoxy primer on the prepared surface.\n",0.76254145840301368,"Sqm",525,719.4,377685,0,0]
[null,"Total",{"$f":"SUM(C10:C15)","v":1},null,null,null,{"$f":"SUM(G10:G15)","v":495297.66000000003}]
[]
["Note-","GST Shall be paid Extra As applicable. "]
[null,"1. Bidder has to quote in above unlocked cell only. Item rate shall be calculated automatically. Calculated item rates upto four decimal points may be adjusted w.r.t. gross total amount and it shall be the itemwise final rate for  execution of contract and all other purposes."]
[null,"2. Quoted gross total amount should be considered only if quoted in this excel sheet and print out of this should only be considered for evaluation.  If Price is quoted in any other format other than the Excel Sheet enclosed to the NIT , the offer of the bidder  will be rejected"]
[null,"3. During the execution , the quantity of various items may vary to any extent depending on requirement of work/site and as per discretion of BHEL."]